Cogmind - Beta 15 @@@ ROGUE MODE // 2025.05.29 @ 19:01:40 Player: Elias Result: Destroyed by BJ-6X8(x) with Makeshift Spear Performance ------------- Evolutions (0) 0 Regions Visited (3) 600 Robots Destroyed (5) 25 Value Destroyed (200) 200 Prototype IDs (6) 120 Alien Tech Used (0) 0 Bonus (300) 300 TOTAL SCORE: 1245 Bonus ------- Registered with UFD 300 Cogmind --------- Core Integrity 0/250 Matter 295/300 Energy 100/100 System Corruption 0% Temperature Cool (0) Movement Treading (160) Location -9/Scraptown Parts ------- > --- POWER (1) -------- (None) > --- PROPULSION (2) --- Light Treads Light Treads > --- UTILITY (2) ------ Large Storage Unit Sensor Array > --- WEAPON (2) ------- Coil Gun Great Axe > --- INVENTORY (15) --- Light Ion Engine Light Treads Light Treads Small Storage Unit Improved Signal Interpreter Subdweller Laser Beam Cannon DRS Beacon (Ready) Large Botcube Peak State ------------ > --- POWER ------------ Subdweller Power Source > --- PROPULSION ------- Light Treads Light Treads > --- UTILITY ---------- Large Storage Unit Sensor Array > --- WEAPON ----------- Coil Gun Great Axe > --- INVENTORY -------- Light Ion Engine Light Treads Light Treads Small Storage Unit Improved Signal Interpreter Subdweller Laser Beam Cannon DRS Beacon Large Botcube [Rating: 19] Favorites ----------- Power Subdweller Power Source Engine Subdweller Power Source Propulsion Light Treads Treads Light Treads Leg Aluminum Leg Utility Sensor Array Device Sensor Array Storage Small Storage Unit Weapon Beam Cannon Energy Gun Medium Laser Energy Cannon Beam Cannon Ballistic Gun Coil Gun Slashing Weapon Great Axe Build | -11 -10 -10 -9 ------- Run | Yrd Mat Sub Scr Slots Evolved . | . . . . Power . | . . . . Propulsion . | . . . . Utility . | . . . . Weapon . | . . . . Parts Attached 16 | 5 2 6 3 Power 2 | 1 . 1 . Engine 2 | 1 . 1 . Core . | . . . . Reactor . | . . . . Propulsion 4 | 1 1 2 . Treads 2 | . . 2 . Leg 2 | 1 1 . . Wheel . | . . . . Hover . | . . . . Flight . | . . . . Utility 3 | 1 1 . 1 Device 1 | . 1 . . Storage 2 | 1 . . 1 Processor . | . . . . Hackware . | . . . . Protection . | . . . . Artifact . | . . . . Weapon 7 | 2 . 3 2 Energy Gun 3 | 2 . 1 . Energy Cannon 1 | . . 1 . Ballistic Gun 2 | . . 1 1 Ballistic Cannon . | . . . . Launcher . | . . . . Special Weapon . | . . . . Impact Weapon . | . . . . Slashing Weapon 1 | . . . 1 Piercing Weapon . | . . . . Special Melee Weapon . | . . . . Unidentified Prototypes . | . . . . Parts Lost 1 | . . . 1 Power 1 | . . . 1 Propulsion . | . . . . Utility . | . . . . Weapon . | . . . . Highest Loss Streak 1 | . . . 1 To Critical Strikes . | . . . . Average Backups 7 | 3 6 7 6 Power . | . 1 1 1 Propulsion 2 | 1 3 3 2 Utility 1 | . . 1 2 Weapon 1 | 1 1 2 1 Tool/Special . | . . . . Unused Backups 9 | 1 . 1 7 Power 1 | . . . 1 Propulsion 3 | 1 . . 2 Utility 2 | . . . 2 Weapon 3 | . . 1 2 Tool/Special . | . . . . Average Slot Usage (%) 99 | . 90 100 99 Engine 13 | . 14 14 13 Treads 21 | . . 9 28 Leg 6 | . 28 18 . Device 13 | . 5 14 14 Storage 14 | . 14 14 14 Energy Gun 4 | . 28 12 . Energy Cannon 13 | . . 13 13 Ballistic Gun 10 | . . 2 14 Peak Build Rating 19 | 5 7 10 19 Average Rating 11 | 4 6 8 12 On Entrance 5 | . 5 7 10 Naked Turns . | . . . . Heaviest Build 35 | 11 12 18 35 Greatest Support 40 | 10 20 40 40 Greatest Overweight (x) 1 | 1 . . . Average Overweight (x) . | . . . . Largest Inventory Capacity 15 | 8 8 8 15 Average Capacity 9 | 7 8 8 10 Most Carried 10 | 5 8 8 10 Average Carried 7 | 3 6 7 8 Final Capacity 15 | 8 8 8 15 Final Carried 10 | 5 8 8 10 Class Distribution -------------------- 100% | Mutant Dominant Class ---------------- Mutant | -10/Materials Mutant | -10/Subcaves Mutant | -9/Scraptown Resources | -11 -10 -10 -9 ----------- Run | Yrd Mat Sub Scr Matter Collected 350 | 250 2 78 20 Remotely . | . . . . Salvage Created 232 | . . 232 . Parts 11 | . . 11 . Haulers Intercepted . | . . . . Recyclers Shooed . | . . . . Parts Field Recycled . | . . . . Retrieved Matter . | . . . . Parts Self-Destructed 6 | . . 6 . Prevented . | . . . . Kills | -11 -10 -10 -9 ------- Run | Yrd Mat Sub Scr Combat Hostiles Destroyed 5 | . . 5 . Guns 4 | . . 4 . Cannons 1 | . . 1 . Classes Destroyed 1 | . . 1 . Subdweller 5 | . . 5 . Best Kill Streak 2 | . . 2 . Combat Bots Only 2 | . . 2 . Max Kills in Single Turn 1 | . . 1 . Gunslinging . | . . . . Exploded . | . . . . Melee . | . . . . Uniques/NPCs Destroyed . | . . . . Combat | -11 -10 -10 -9 -------- Run | Yrd Mat Sub Scr Hostile Shots Fired 67 | . . 52 15 Missed 19 | . . 13 6 Hits 48 | . . 39 9 Melee 9 | . . . 9 Projectile 39 | . . 39 . Critical Strikes 2 | . . . 2 Damage Taken 924 | . 42 591 291 Core 289 | . 21 105 163 Absorbed by Shields . | . . . . Core Remaining (%) 100 | 100 . . . Volleys Fired 22 | . . 22 . Largest 2 | . . 2 . Hottest 110 | . . 110 . Shots Fired 44 | . . 44 . Gun 22 | . . 22 . Cannon 22 | . . 22 . Launcher . | . . . . Special . | . . . . Kinetic . | . . . . Thermal 44 | . . 44 . Explosive . | . . . . Electromagnetic . | . . . . Robot Hit Streak 14 | . . 14 . Robot Miss Streak 4 | . . 4 . Penetration Max . | . . . . Secondary Targets . | . . . . Shots Hit Robots 28 | . . 28 . Core Hits 11 | . . 11 . Critical Kills . | . . . . Critical Parts Destroyed . | . . . . Critical Strikes 2 | . . 2 . Burn 2 | . . 2 . Melee Attacks 1 | . . . 1 Impact . | . . . . Slashing 1 | . . . 1 Piercing . | . . . . Sneak Attacks . | . . . . Combat Hostiles . | . . . . Follow-up Attacks . | . . . . Damage Inflicted 407 | . . 407 . Guns 200 | . . 200 . Cannons 207 | . . 207 . Explosions . | . . . . Melee . | . . . . Ramming . | . . . . Kinetic . | . . . . Thermal 407 | . . 407 . Explosive . | . . . . Electromagnetic . | . . . . Impact . | . . . . Slashing . | . . . . Piercing . | . . . . Highest Corruption . | . . . . Average Corruption . | . . . . Corruption Purged . | . . . . Corruption Blocked . | . . . . Overload Shots . | . . . . Overflow Damage . | . . . . Projectiles . | . . . . Explosions . | . . . . Melee . | . . . . Knockbacks . | . . . . Impact . | . . . . Kinetic . | . . . . Secondary . | . . . . Self-Inflicted Damage . | . . . . Shots . | . . . . Rammed . | . . . . Targets Rammed . | . . . . Kicked . | . . . . Crushed . | . . . . Highest Temperature 2 | . . 2 . Average Temperature 2 | . . 2 . Received Heat Transfer 90 | . . 90 . Siege Activations . | . . . . Martial Activations . | . . . . Shielding Activations . | . . . . Robots Disrupted . | . . . . Combat Hostiles . | . . . . Robots Corrupted . | . . . . Combat Hostiles . | . . . . Parts Fried . | . . . . Impact Corruptions . | . . . . Robots Melted . | . . . . Combat Hostiles . | . . . . Parts Melted 4 | . . 4 . Heat Transferred 1184 | . . 1184 . Parts Sabotaged . | . . . . Parts Stolen . | . . . . Parts Stripped . | . . . . Power Chain Reactions . | . . . . Alert | -11 -10 -10 -9 ------- Run | Yrd Mat Sub Scr Maximum Alert Level . | . . . . Low Security (%) 100 | 100 100 . . Level 1 . | . . . . Level 2 . | . . . . Level 3 . | . . . . Level 4 . | . . . . Level 5 . | . . . . High Security . | . . . . Max Security . | . . . . Peak Influence . | . . . . Initial . | . . . . Average . | . . . . Influence Increases . | . . . . Influence Decreases . | . . . . Squads Dispatched . | . . . . Investigation . | . . . . Extermination . | . . . . Reinforcement . | . . . . Assault . | . . . . Garrison . | . . . . Intercept . | . . . . Searches Triggered . | . . . . Construction Impeded . | . . . . Haulers Reinforced . | . . . . Active Scanning Responses . | . . . . Cargo Convoy Interrupts . | . . . . Stealth | -11 -10 -10 -9 --------- Run | Yrd Mat Sub Scr Distress Signals . | . . . . Communications Jammed . | . . . . Distress Signals . | . . . . Times Spotted 14 | . . 12 2 Peak Tracking Total 6 | . . 6 2 Tactical Retreats . | . . . . Traps | -11 -10 -10 -9 ------- Run | Yrd Mat Sub Scr Traps Triggered 1 | . 1 . . Indirectly . | . . . . Trap Hack Attempts . | . . . . Triggered . | . . . . Disarmed . | . . . . Reprogrammed . | . . . . Reused . | . . . . Traps Extracted . | . . . . Installed . | . . . . Triggered . | . . . . Machines | -11 -10 -10 -9 ---------- Run | Yrd Mat Sub Scr Machines Disabled . | . . . . Max in Single Turn . | . . . . Machines Repaired . | . . . . Machines Dismantled . | . . . . Machines Sabotaged . | . . . . Overloaded Fab Kills . | . . . . Hacking | -11 -10 -10 -9 --------- Run | Yrd Mat Sub Scr Machines Accessed 5 | . 1 . 4 Terminals . | . . . . Fabricators . | . . . . Repair Stations . | . . . . Recycling Units 1 | . 1 . . Scanalyzers . | . . . . Garrison Access . | . . . . Total Hacks 24 | . 1 . 23 Successful 23 | . . . 23 Failed 1 | . 1 . . Catastrophic . | . . . . Database Lockouts . | . . . . Manual . | . . . . Terminals . | . . . . Fabricators . | . . . . Repair Stations . | . . . . Recycling Units 1 | . 1 . . Scanalyzers . | . . . . Garrison Access . | . . . . Terminal Hacks 23 | . . . 23 Record 22 | . . . 22 Proto ID Catalog 1 | . . . 1 Fabricator Hacks . | . . . . Repair Station Hacks . | . . . . Recycling Unit Hacks . | . . . . Scanalyzer . | . . . . Garrison Access Hacks . | . . . . Unauthorized Hacks . | . . . . Terminals . | . . . . Fabricators . | . . . . Repair Stations . | . . . . Recycling Units . | . . . . Scanalyzers . | . . . . Garrison Access . | . . . . Data Cores Recovered . | . . . . Used . | . . . . Hacking Detections 1 | . 1 . . Full Trace Events . | . . . . Feedback Events . | . . . . Feedback Blocked . | . . . . Robot Schematics Acquired . | . . . . Robots Built . | . . . . Authchips . | . . . . Time . | . . . . Total Robot Build Rating . | . . . . Part Schematics Acquired . | . . . . Parts Built . | . . . . Authchips . | . . . . Time . | . . . . Total Part Build Rating . | . . . . Parts Repaired . | . . . . Time . | . . . . Parts Recycled . | . . . . Recycled Matter . | . . . . Retrieved Matter . | . . . . Retrieved Components . | . . . . Parts Scanalyzed . | . . . . Part Schematics Acquired . | . . . . Parts Damaged . | . . . . Bothacking | -11 -10 -10 -9 ------------ Run | Yrd Mat Sub Scr Used RIF Installer . | . . . . Robots Hacked . | . . . . Non-combat . | . . . . Combat . | . . . . Robot Hacks Applied . | . . . . Relay Couplers Released . | . . . . Fabnet Peak Effective % . | . . . . Robots Rewired . | . . . . Allies Hacked . | . . . . Hacks Repelled . | . . . . Allies | -11 -10 -10 -9 -------- Run | Yrd Mat Sub Scr Total Allies . | . . . . Largest Group . | . . . . Highest-Rated Group . | . . . . Highest-Rated Ally . | . . . . Total Orders . | . . . . Ally Attacks . | . . . . Total Damage . | . . . . Kills . | . . . . Allies Corrupted . | . . . . Allies Melted . | . . . . Intel | -11 -10 -10 -9 ------- Run | Yrd Mat Sub Scr Active Infowar (turns) 2640 | . 57 726 1857 Sensors 2640 | . 57 726 1857 Robot Analysis Total . | . . . . Derelict Logs Recovered 1 | . . 1 . Drone Launches . | . . . . Drone Recoveries . | . . . . Exploration | -11 -10 -10 -9 ------------- Run | Yrd Mat Sub Scr Turns Passed 2800 | 79 138 726 1857 Spaces Moved 1779 | 43 110 481 1145 Core 11 | 11 . . . Treads 1280 | . . 135 1145 Legs 488 | 32 110 346 . Wheels . | . . . . Hover . | . . . . Flight . | . . . . Fastest Speed 50 | 50 120 120 160 Average Speed 149 | 147 120 131 160 Slowest Speed 190 | 190 120 160 160 Overloaded Moves . | . . . . Propulsion Burnouts . | . . . . Robots Hopped . | . . . . Potential Cave-ins . | . . . . Cave-ins Triggered . | . . . . Exploration Rate (%) 36 | 4 20 39 83 Regions Visited 3 Branch Regions 2 Pre-discovered Areas 1 | . . 1 . Known Exits Taken . | . . . . Unknown Exits Taken 3 | 1 1 1 . Scrap Searched 5 | . . . 5 Spaces Dug 1 | . . . 1 Terrain Destroyed 1 | . . . 1 Melee 1 | . . . 1 Projectile . | . . . . AOE . | . . . . Terrain Rammed . | . . . . Walls Destroyed . | . . . . Machines Disabled . | . . . . Actions | -11 -10 -10 -9 --------- Run | Yrd Mat Sub Scr Total 1877 | 59 116 534 1168 Wait 24 | . . 13 11 Move 1776 | 42 109 480 1145 Hop . | . . . . Pick Up 26 | 11 5 5 5 Fast Attach . | . . . . Attach 7 | 5 2 . . Detach . | . . . . Swap 9 | . . 6 3 Drop 12 | 1 . 8 3 Fire 22 | . . 22 . Melee 1 | . . . 1 Ram . | . . . . Kick . | . . . . Crush . | . . . . Escape Stasis . | . . . . Rewire . | . . . . Trap . | . . . . Miscellaneous . | . . . . Route ------- -11/Scrapyard -10/Materials -10/Subcaves (discovered 3 exits: [*Mat] / [*Rec] / *Scr) -9/Scraptown (discovered 1 exit: [*Fac]) History --------- Turn | Location | Event 34 | -11/Scrapyard | Discovered new exit (range 16) 80 | -11/Scrapyard | Entered Materials 189 | -10/Materials | Discovered new exit (range 8) 218 | -10/Materials | Entered Subcaves 219 | -10/Subcaves | Approached by a straggling Scientist 315 | -10/Subcaves | Build established: Mutant 341 | -10/Subcaves | Shifting Twisted Machinery released Sub. Power Source 345 | -10/Subcaves | Shifting Twisted Machinery released Battle Cannon 350 | -10/Subcaves | Discovered new exit (range 10) 401 | -10/Subcaves | Shifting Twisted Machinery released Sub. Monowheel 404 | -10/Subcaves | Shifting Twisted Machinery released Sub. Laser 941 | -10/Subcaves | Discovered new exit (range 9) 942 | -10/Subcaves | Scientist uncovered a shortcut to Scraptown 944 | -10/Subcaves | Core integrity fell below 50% 944 | -10/Subcaves | Entered Scraptown 1228 | -9/Scraptown | Visited The Evicted 1287 | -9/Scraptown | Visited Shadow of the Wyrm 1691 | -9/Scraptown | Discovered new exit (range 11) 1811 | -9/Scraptown | Visited Fellowship of the Rings 1831 | -9/Scraptown | Visited Cyclists 1911 | -9/Scraptown | Visited UFD Registry 1911 | -9/Scraptown | Registered with UFD as "Autowarp" 1951 | -9/Scraptown | Visited Chapter 10 1995 | -9/Scraptown | Visited Botcube Research 2031 | -9/Scraptown | Visited Abandonware Association 2050 | -9/Scraptown | Learned abandonware demo "ERRANTS.EXE" 2122 | -9/Scraptown | Delivered Scrap Shield to a Scientist 2270 | -9/Scraptown | Visited Research Penetration Think Tank 2308 | -9/Scraptown | Visited DA-N13 Charitable Foundation 2417 | -9/Scraptown | Found Lrg. Botcube 2487 | -9/Scraptown | Visited Cartography Club 2572 | -9/Scraptown | Visited Science Guys 2628 | -9/Scraptown | Visited Science Testing Area 2658 | -9/Scraptown | Visited Derelict Rescue Squad 2668 | -9/Scraptown | Found DRS Beacon 2782 | -9/Scraptown | Attacked by Scraptown defenders 2794 | -9/Scraptown | Core integrity fell below 20% 2801 | -9/Scraptown | Destroyed by BJ-6X8(x) with Makeshift Spear Last Messages --------------- Cloaking Wrap 02628_ LOCAL NARROWCAST: Science Testing Area. NO EXPLOSIVES TESTING ALLOWED. 02658_ LOCAL NARROWCAST: Derelict Rescue Squad. Who you gonna call? HD-KG6(h): Welcome to the UFD, Autowarp! If you're planning on visiting any caves around the 0b10 area, I suggest you take this beacon. You're in luck, this is the last one we have to hand out this cycle. Just drop it and activate, we'll send help as soon as possible. If you end up not using it, bring it on back so we can hand it off to another brave explorer. Resources are limited, after all, and a single beacon will only work once, as we have to spread the help around. 02668_ Acquired DRS Beacon. 02705_ LOCAL NARROWCAST: Closed for remodeling. 02758_ NU-F2U(p) closely examines the mainframe. 02782_ ANNOUNCEMENT: Intruder alert! Defend Scraptown! 02790_ Critical hit (Impale). 02795_ Broken Sub. Power Source destroyed. 02801_ Critical hit (Impale). Map ----- +----------------------------------------------------+ | #######??###?????????????????????????????????????? | | "#"""""??""#?????????????????????????????????????? | | "#" ? "#?????????????????????????????????????? | | """ "#?????????????????????????????????????? | | "#" "" "#?????????????????????????????????????? | | "#" " "#?????????????????????????????????????? | | "#" "#?????????????????????????????????????? | | "#"" """"""#?????????????????????????????????????? | | #?????????????????????????????????????? | | #?????????????????????????????????????? | | #?????????????????????????????????????? | | "" """"#####?????????????????????????????????????? | | " !%"#?????????????????????????????????????????? | | " ""#?????????????????????????????????????????? | | " """#?????????????????????????????????????????? | | " """#?????????????????????????????????????????? | | """""""#?????????????????????????????????????????? | | ########??????????????????????????#############??? | | ??????????????????????????????????#"""""""""""#??? | | ?????####???????????????????##????#""" X """""#??? | | ######"""#?????????????????? #????#"""" """#### | | #?XX "#????????????????## #????#""!" "# | | #?? "???????????????### ?????#"""" """# | | #??? ???????????????#X#"#?????#"" """"# | | #???#"#???????????????### ####??# ""# | | ##### #######?????????#@x #??#&" "" ""# | | ##" "#???#######x######??#&" "" ""# | | ##" X#???# #??#" # | | ##" "#???# #??# "# | | ?# #???########## ###??###### ######### | | ##### ##########???????##### ########### ######### | | #???????#"""" """"""""""" """"""""" | | #???????#" | | #???????#" | | #???????#" | | #???????#" | | ###### #???#####" | | ?????# #???#"""" """""""""""""""""""" | | ?????# #???#"""" """""""""""""""""""" | | ?????# #???#"""" ""###### ########## | | ?????# #???#"""" ""#???? ???????? | | ?????# #???#"""" ""#???? ???????? | | ?????# ###?#"""" ""#? "" ""???????? | | ?????# ""#"#"""" ""# "" ????????? | | ?????# """"#"""" ""# " ???????### | | ?????# ""#######" "" "??????? | | ?????# ###?????#" "" ""??????? | | ?????# #########" ""# " ????????? | | ?????# ""# "" "???????? | | ?????# ""#?? "" "" ??????? | +----------------------------------------------------+ Best States ------------- Heat Dissipation 25 Energy Generation 15 Energy Capacity 200 Matter Stores 300 Matter Capacity 300 Sight Range 16 Robot Scan Range 14 Terrain Scan Density 10 Evasion (%) 55 Recoil Reduction 2 Item Schematics ----------------- None Robot Schematics ------------------ None Fabricated ------------ Nothing Repaired ---------- Nothing Alien Tech Used ----------------- None Achievements -------------- None Challenges ------------ None Game ------ Seed MinesnifferTargetingThrower Manual? 0 Play Time 00:19:21 Cumulative 29.7 hours Start 2025.05.29 @ 18:11:13 End 2025.05.29 @ 19:01:40 Sessions 1 Manual Loads 0 Difficulty Rogue Special Mode None Game No. 43 Rogue 43 Adventurer 0 Explorer 0 Win Type - Total 0 Types 0/0/0/0/0/0/0/0/0/0 Lore% 28 Gallery% 32 Achievement% 26 Wizard Run 0 Options --------- Layout 0 ASCII 0 Keyboard 0 Movement Mouse Keybinds 0 Fullscreen 1 Font 18/SmallcapsGlow Map View 76x50 Zoom Use 0% Tactical HUD 1 Map Filters NONE Filters NONE Steam 1 RUN: 6f7e965f-e95e-424f-9a0b-a710c90accaa